[Event "*** Titled Tuesday Blitz"]
[Site "Chess.com"]
[Date "2020.05.26"]
[Round "9"]
[White "Titus369"]
[Black "Roza_Idrisova"]
[Result "0-1"]
[WhiteElo "2585"]
[BlackElo "2176"]
[TimeControl "180+1"]
[EndTime "11:53:49 PDT"]
[Termination "Roza_Idrisova won by checkmate"]

1. e4 {[%clk 0:03:00.9]} 1... c6 {[%clk 0:02:59.2]} 2. d4 {[%clk 0:03:00.7]}
2... d5 {[%clk 0:02:59.1]} 3. Nd2 {[%clk 0:03:01.2]} 3... Nh6 {[%clk 0:02:54.9]}
4. h3 {[%clk 0:02:50.5]} 4... g6 {[%clk 0:02:53.5]} 5. Ngf3 {[%clk 0:02:46.5]}
5... Bg7 {[%clk 0:02:53.1]} 6. c3 {[%clk 0:02:42.2]} 6... f6 {[%clk 0:02:50.3]}
7. Qb3 {[%clk 0:02:34.6]} 7... Nf7 {[%clk 0:02:49.4]} 8. exd5 {[%clk 0:02:27.3]}
8... cxd5 {[%clk 0:02:46.6]} 9. Bb5+ {[%clk 0:02:27.5]} 9... Nc6 {[%clk
0:02:45.8]} 10. O-O {[%clk 0:02:28.1]} 10... O-O {[%clk 0:02:45]} 11. Re1 {[%clk
0:02:26.1]} 11... a6 {[%clk 0:02:43.7]} 12. Bd3 {[%clk 0:02:25.7]} 12... Re8
{[%clk 0:02:42.7]} 13. Nf1 {[%clk 0:02:25.4]} 13... b5 {[%clk 0:02:39.3]} 14. a4
{[%clk 0:02:24.8]} 14... Na5 {[%clk 0:02:38]} 15. Qd1 {[%clk 0:02:24.1]} 15...
Bd7 {[%clk 0:02:31.3]} 16. Ne3 {[%clk 0:02:14.6]} 16... Bc6 {[%clk 0:02:27.2]}
17. axb5 {[%clk 0:01:48.8]} 17... axb5 {[%clk 0:02:26.3]} 18. Qe2 {[%clk
0:01:48.9]} 18... Nc4 {[%clk 0:02:23.8]} 19. Rxa8 {[%clk 0:01:47.2]} 19... Qxa8
{[%clk 0:02:19.7]} 20. b3 {[%clk 0:01:47.7]} 20... Ncd6 {[%clk 0:02:17.3]} 21.
Nc2 {[%clk 0:01:40.3]} 21... e5 {[%clk 0:01:59.8]} 22. dxe5 {[%clk 0:01:11.8]}
22... fxe5 {[%clk 0:01:57.9]} 23. Nb4 {[%clk 0:01:05.3]} 23... e4 {[%clk
0:01:53.2]} 24. Nd4 {[%clk 0:00:56.3]} 24... exd3 {[%clk 0:01:46]} 25. Qd1
{[%clk 0:00:52.9]} 25... Bxd4 {[%clk 0:01:43.9]} 26. cxd4 {[%clk 0:00:50.7]}
26... Rxe1+ {[%clk 0:01:41]} 27. Qxe1 {[%clk 0:00:48.9]} 27... Ne4 {[%clk
0:01:32.4]} 28. Nxd3 {[%clk 0:00:45.9]} 28... Bd7 {[%clk 0:01:23.2]} 29. f3
{[%clk 0:00:39.9]} 29... Ned6 {[%clk 0:01:19]} 30. Nc5 {[%clk 0:00:39.3]} 30...
Qe8 {[%clk 0:01:12.6]} 31. Qf2 {[%clk 0:00:30.7]} 31... Nf5 {[%clk 0:01:11.6]}
32. g4 {[%clk 0:00:21.7]} 32... N5d6 {[%clk 0:01:10.8]} 33. Bf4 {[%clk
0:00:20.7]} 33... Qe7 {[%clk 0:01:06.6]} 34. Kg2 {[%clk 0:00:17.9]} 34... g5
{[%clk 0:01:03.5]} 35. Bd2 {[%clk 0:00:17.5]} 35... Ne8 {[%clk 0:01:00]} 36. Nd3
{[%clk 0:00:15.9]} 36... h6 {[%clk 0:00:57.9]} 37. Bb4 {[%clk 0:00:15.7]} 37...
Qf6 {[%clk 0:00:55.3]} 38. Nc5 {[%clk 0:00:14.7]} 38... Bc8 {[%clk 0:00:53.8]}
39. Qd2 {[%clk 0:00:13.6]} 39... Ned6 {[%clk 0:00:52.3]} 40. Qe3 {[%clk
0:00:11.1]} 40... Kf8 {[%clk 0:00:49.5]} 41. Nd3 {[%clk 0:00:10.6]} 41... Bd7
{[%clk 0:00:45.3]} 42. Ne5 {[%clk 0:00:10.7]} 42... Qe6 {[%clk 0:00:38.6]} 43.
Qc3 {[%clk 0:00:09.4]} 43... Kg7 {[%clk 0:00:37.1]} 44. Qc7 {[%clk 0:00:07.4]}
44... Nxe5 {[%clk 0:00:30]} 45. dxe5 {[%clk 0:00:06.6]} 45... Nf7 {[%clk
0:00:29.7]} 46. Bd2 {[%clk 0:00:05]} 46... Nxe5 {[%clk 0:00:27.5]} 47. Bc3
{[%clk 0:00:05.1]} 47... Kf6 {[%clk 0:00:25.4]} 48. Qd8+ {[%clk 0:00:05]} 48...
Kf7 {[%clk 0:00:19.9]} 49. Qh8 {[%clk 0:00:03]} 49... Ng6 {[%clk 0:00:18.8]} 50.
Qg7+ {[%clk 0:00:02.9]} 50... Ke8 {[%clk 0:00:18.9]} 51. Bf6 {[%clk 0:00:02.1]}
51... Bc6 {[%clk 0:00:18.3]} 52. Qh7 {[%clk 0:00:01]} 52... Nf8 {[%clk 0:00:17]}
53. Qxh6 {[%clk 0:00:01.9]} 53... Qe2+ {[%clk 0:00:16.3]} 54. Kg3 {[%clk
0:00:01.8]} 54... Qe6 {[%clk 0:00:15.3]} 55. Qh5+ {[%clk 0:00:02.7]} 55... Qf7
{[%clk 0:00:15]} 56. Qxg5 {[%clk 0:00:03.6]} 56... Bd7 {[%clk 0:00:13.6]} 57.
Qe5+ {[%clk 0:00:04]} 57... Qe6 {[%clk 0:00:13.2]} 58. Qb8+ {[%clk 0:00:04.1]}
58... Kf7 {[%clk 0:00:12.8]} 59. Be5 {[%clk 0:00:05]} 59... Be8 {[%clk
0:00:12.2]} 60. f4 {[%clk 0:00:05.3]} 60... Ng6 {[%clk 0:00:11.2]} 61. Qc7+
{[%clk 0:00:04]} 61... Qe7 {[%clk 0:00:11.4]} 62. h4 {[%clk 0:00:03.4]} 62...
Nxe5 {[%clk 0:00:10.9]} 63. Qxe5 {[%clk 0:00:03.3]} 63... Qxe5 {[%clk 0:00:11]}
64. fxe5 {[%clk 0:00:04.2]} 64... Ke6 {[%clk 0:00:11.5]} 65. Kf4 {[%clk
0:00:04.2]} 65... d4 {[%clk 0:00:11.8]} 66. Ke4 {[%clk 0:00:04.2]} 66... d3
{[%clk 0:00:12.1]} 67. Kxd3 {[%clk 0:00:04.3]} 67... Kxe5 {[%clk 0:00:12.5]} 68.
b4 {[%clk 0:00:05.2]} 68... Kf4 {[%clk 0:00:12.5]} 69. g5 {[%clk 0:00:05.1]}
69... Kg4 {[%clk 0:00:12]} 70. Ke4 {[%clk 0:00:03]} 70... Kxh4 {[%clk
0:00:11.9]} 71. Kf5 {[%clk 0:00:03.9]} 71... Kh5 {[%clk 0:00:11.5]} 72. Kf6
{[%clk 0:00:04.4]} 72... Bg6 {[%clk 0:00:10]} 73. Ke5 {[%clk 0:00:04.5]} 73...
Kxg5 {[%clk 0:00:08.6]} 74. Kd5 {[%clk 0:00:05.4]} 74... Bd3 {[%clk 0:00:08.9]}
75. Kc5 {[%clk 0:00:06.3]} 75... Bc4 {[%clk 0:00:09.7]} 76. Kd4 {[%clk
0:00:06.8]} 76... Kf4 {[%clk 0:00:10.3]} 77. Kc5 {[%clk 0:00:07.7]} 77... Ke4
{[%clk 0:00:10.5]} 78. Kb6 {[%clk 0:00:07.7]} 78... Kd3 {[%clk 0:00:11.4]} 79.
Kc5 {[%clk 0:00:07.7]} 79... Kc3 {[%clk 0:00:12.3]} 80. Kb6 {[%clk 0:00:07.9]}
80... Kb3 {[%clk 0:00:13.2]} 81. Ka5 {[%clk 0:00:08.8]} 81... Ka3 {[%clk
0:00:12]} 82. Ka6 {[%clk 0:00:09.7]} 82... Kxb4 {[%clk 0:00:12.8]} 83. Kb6
{[%clk 0:00:10]} 83... Kc3 {[%clk 0:00:13.7]} 84. Ka5 {[%clk 0:00:10.9]} 84...
b4 {[%clk 0:00:14.6]} 85. Ka4 {[%clk 0:00:10.4]} 85... b3 {[%clk 0:00:15.5]} 86.
Ka3 {[%clk 0:00:11.3]} 86... b2 {[%clk 0:00:16.4]} 87. Ka4 {[%clk 0:00:12.2]}
87... b1=Q {[%clk 0:00:17.3]} 88. Ka5 {[%clk 0:00:13.1]} 88... Qb4# {[%clk
0:00:18]} 0-1

[Event "*** Titled Tuesday Blitz"]
[Site "Chess.com"]
[Date "2020.05.26"]
[Round "9"]
[White "Antelacus"]
[Black "pedro_nascimento85"]
[Result "1-0"]
[WhiteElo "2226"]
[BlackElo "1878"]
[TimeControl "180+1"]
[EndTime "11:54:10 PDT"]
[Termination "Antelacus won by resignation"]

1. d4 {[%clk 0:03:00.9]} 1... d5 {[%clk 0:02:59.4]} 2. c4 {[%clk 0:03:00.3]}
2... e6 {[%clk 0:02:59]} 3. Nc3 {[%clk 0:03:00.4]} 3... Be7 {[%clk 0:02:58.9]}
4. Nf3 {[%clk 0:02:58.8]} 4... Nf6 {[%clk 0:02:59.3]} 5. Bg5 {[%clk 0:02:57.2]}
5... h6 {[%clk 0:02:59.5]} 6. Bh4 {[%clk 0:02:57]} 6... O-O {[%clk 0:02:59.5]}
7. e3 {[%clk 0:02:57.3]} 7... b6 {[%clk 0:02:59.2]} 8. Qc2 {[%clk 0:02:55.6]}
8... Bb7 {[%clk 0:02:55.6]} 9. cxd5 {[%clk 0:02:54.4]} 9... Nxd5 {[%clk
0:02:54.3]} 10. Bxe7 {[%clk 0:02:52.7]} 10... Qxe7 {[%clk 0:02:51]} 11. Nxd5
{[%clk 0:02:51.2]} 11... Bxd5 {[%clk 0:02:51.5]} 12. Bd3 {[%clk 0:02:47.6]}
12... Nd7 {[%clk 0:02:45.4]} 13. e4 {[%clk 0:02:44.8]} 13... Bb7 {[%clk
0:02:43.9]} 14. O-O {[%clk 0:02:43.9]} 14... c5 {[%clk 0:02:43.5]} 15. Rfd1
{[%clk 0:02:32]} 15... cxd4 {[%clk 0:02:41.4]} 16. Nxd4 {[%clk 0:02:31.6]} 16...
Rac8 {[%clk 0:02:37]} 17. Qe2 {[%clk 0:02:29.1]} 17... Nc5 {[%clk 0:02:36.4]}
18. Bc2 {[%clk 0:02:20.3]} 18... Rfd8 {[%clk 0:02:25.6]} 19. Nb3 {[%clk
0:02:09.6]} 19... Na4 {[%clk 0:02:10.1]} 20. Bd3 {[%clk 0:02:00]} 20... Nc5
{[%clk 0:02:07]} 21. Nxc5 {[%clk 0:01:57.6]} 21... Qxc5 {[%clk 0:02:04.5]} 22.
h3 {[%clk 0:01:49.1]} 22... Rd7 {[%clk 0:01:46.8]} 23. Bb5 {[%clk 0:01:39.3]}
23... Rxd1+ {[%clk 0:01:44.8]} 24. Rxd1 {[%clk 0:01:38.9]} 24... Qc2 {[%clk
0:01:37.7]} 25. Rd8+ {[%clk 0:01:30.1]} 25... Kh7 {[%clk 0:01:34.4]} 26. Rxc8
{[%clk 0:01:02.3]} 26... Qxe2 {[%clk 0:01:30.5]} 27. Bxe2 {[%clk 0:01:00.6]}
27... Bxc8 {[%clk 0:01:30.7]} 28. f3 {[%clk 0:01:00.1]} 28... f6 {[%clk
0:01:29.4]} 29. Kf2 {[%clk 0:01:00.7]} 29... e5 {[%clk 0:01:29.4]} 30. Ke3
{[%clk 0:01:00.8]} 30... Be6 {[%clk 0:01:28.8]} 31. a3 {[%clk 0:01:00.3]} 31...
Kg8 {[%clk 0:01:28.3]} 32. Kd3 {[%clk 0:00:59.6]} 32... Kf8 {[%clk 0:01:28.1]}
33. Kc3 {[%clk 0:00:59.8]} 33... Ke7 {[%clk 0:01:27.9]} 34. Kb4 {[%clk
0:00:59.9]} 34... Kd6 {[%clk 0:01:27.8]} 35. Kb5 {[%clk 0:00:59.1]} 35... Kc7
{[%clk 0:01:23.9]} 36. Ka6 {[%clk 0:00:55.9]} 36... Kb8 {[%clk 0:01:23.4]} 37.
Bd3 {[%clk 0:00:50.4]} 37... Bc8+ {[%clk 0:01:22.9]} 38. Kb5 {[%clk 0:00:50.2]}
38... Kc7 {[%clk 0:01:23.2]} 39. b4 {[%clk 0:00:45.8]} 39... a6+ {[%clk
0:00:59.2]} 40. Kc4 {[%clk 0:00:43.9]} 40... Kd6 {[%clk 0:00:55.4]} 41. Kc3
{[%clk 0:00:40.2]} 41... Kc6 {[%clk 0:00:49.4]} 42. Bc4 {[%clk 0:00:39.3]} 42...
a5 {[%clk 0:00:45]} 43. Bf7 {[%clk 0:00:37.4]} 43... Bd7 {[%clk 0:00:36.5]} 44.
Bd5+ {[%clk 0:00:35]} 44... Kc7 {[%clk 0:00:36.2]} 45. Kc4 {[%clk 0:00:33.7]}
45... axb4 {[%clk 0:00:24.9]} 46. axb4 {[%clk 0:00:33.2]} 46... Ba4 {[%clk
0:00:21.8]} 47. g3 {[%clk 0:00:21.6]} 47... Bd1 {[%clk 0:00:20.9]} 48. f4 {[%clk
0:00:21.3]} 48... Bf3 {[%clk 0:00:20.4]} 49. h4 {[%clk 0:00:20.4]} 49... exf4
{[%clk 0:00:15.1]} 50. gxf4 {[%clk 0:00:20.2]} 50... Be2+ {[%clk 0:00:13]} 51.
Kd4 {[%clk 0:00:20]} 51... Bd1 {[%clk 0:00:11.4]} 52. e5 {[%clk 0:00:19]} 52...
fxe5+ {[%clk 0:00:11.5]} 53. fxe5 {[%clk 0:00:18.8]} 53... g5 {[%clk 0:00:11.4]}
54. hxg5 {[%clk 0:00:18.6]} 54... hxg5 {[%clk 0:00:11.6]} 55. Ke3 {[%clk
0:00:18.3]} 55... g4 {[%clk 0:00:10.9]} 56. Kf4 {[%clk 0:00:18.5]} 56... Kd8
{[%clk 0:00:10.3]} 57. Be6 {[%clk 0:00:18.6]} 57... Ke7 {[%clk 0:00:10.2]} 58.
Bxg4 {[%clk 0:00:18.3]} 58... Bb3 {[%clk 0:00:09.6]} 59. Ke4 {[%clk 0:00:17.2]}
59... Bf7 {[%clk 0:00:09.1]} 60. Kd4 {[%clk 0:00:16.9]} 60... Be8 {[%clk
0:00:09.5]} 61. Kc4 {[%clk 0:00:16.5]} 61... Bc6 {[%clk 0:00:09.3]} 62. Bf5
{[%clk 0:00:15.2]} 62... Kf7 {[%clk 0:00:09.3]} 63. Kd4 {[%clk 0:00:14.9]} 63...
Ke7 {[%clk 0:00:09.6]} 64. Ke3 {[%clk 0:00:14.7]} 64... Kf7 {[%clk 0:00:09.4]}
65. Kd4 {[%clk 0:00:14.8]} 65... Ke7 {[%clk 0:00:09.8]} 66. Kd3 {[%clk
0:00:14.5]} 66... Kf7 {[%clk 0:00:10.1]} 67. Ke3 {[%clk 0:00:14.7]} 67... Ke7
{[%clk 0:00:10.4]} 68. Be4 {[%clk 0:00:13.5]} 68... Bb5 {[%clk 0:00:08.8]} 69.
Kd4 {[%clk 0:00:13.7]} 69... Ke6 {[%clk 0:00:08.8]} 70. Bd5+ {[%clk 0:00:14]}
70... Ke7 {[%clk 0:00:07.1]} 71. Bc4 {[%clk 0:00:14.2]} 71... Bc6 {[%clk
0:00:06.7]} 72. Bb3 {[%clk 0:00:14.2]} 72... Bd7 {[%clk 0:00:05.4]} 73. Bc2
{[%clk 0:00:12.6]} 73... Bc6 {[%clk 0:00:05.3]} 74. Bf5 {[%clk 0:00:12.1]} 74...
Bb5 {[%clk 0:00:05.5]} 75. Kd5 {[%clk 0:00:12]} 75... Ba4 {[%clk 0:00:04.8]} 76.
Bg4 {[%clk 0:00:10.6]} 76... Bb5 {[%clk 0:00:04.9]} 77. Bh5 {[%clk 0:00:09.9]}
77... Be8 {[%clk 0:00:05.3]} 78. Bxe8 {[%clk 0:00:08.8]} 78... Kxe8 {[%clk
0:00:04.1]} 79. Kc6 {[%clk 0:00:09.2]} 79... Ke7 {[%clk 0:00:04.2]} 80. Kxb6
{[%clk 0:00:10.1]} 80... Ke6 {[%clk 0:00:05]} 81. b5 {[%clk 0:00:10.9]} 81...
Kxe5 {[%clk 0:00:05.9]} 82. Kc6 {[%clk 0:00:10.8]} 82... Ke6 {[%clk 0:00:06.1]}
83. b6 {[%clk 0:00:11.7]} 1-0

[Event "*** Titled Tuesday Blitz"]
[Site "Chess.com"]
[Date "2020.05.26"]
[Round "9"]
[White "Chess_Boxer123"]
[Black "wild_cat99"]
[Result "0-1"]
[WhiteElo "2689"]
[BlackElo "2573"]
[TimeControl "180+1"]
[EndTime "11:54:18 PDT"]
[Termination "wild_cat99 won by resignation"]

1. d4 {[%clk 0:02:20.3]} 1... Nf6 {[%clk 0:02:58]} 2. c4 {[%clk 0:02:19]} 2...
g6 {[%clk 0:02:58.3]} 3. f3 {[%clk 0:02:17.3]} 3... d5 {[%clk 0:02:58.1]} 4.
cxd5 {[%clk 0:02:14.5]} 4... Nxd5 {[%clk 0:02:59]} 5. e4 {[%clk 0:02:15]} 5...
Nb6 {[%clk 0:02:58.7]} 6. Nc3 {[%clk 0:02:15.6]} 6... Bg7 {[%clk 0:02:57.8]} 7.
Be3 {[%clk 0:02:16.1]} 7... O-O {[%clk 0:02:58.3]} 8. Qd2 {[%clk 0:02:10.3]}
8... Nc6 {[%clk 0:02:52.6]} 9. O-O-O {[%clk 0:02:08]} 9... Na5 {[%clk
0:02:47.9]} 10. b3 {[%clk 0:02:03]} 10... Nc6 {[%clk 0:02:35]} 11. e5 {[%clk
0:02:02.9]} 11... a5 {[%clk 0:02:31.9]} 12. a4 {[%clk 0:01:57.8]} 12... Nb4
{[%clk 0:02:24.6]} 13. f4 {[%clk 0:01:56.3]} 13... Be6 {[%clk 0:02:24.1]} 14.
Kb2 {[%clk 0:01:56.2]} 14... N6d5 {[%clk 0:02:19.9]} 15. Nf3 {[%clk 0:01:55.4]}
15... Qd7 {[%clk 0:02:12.6]} 16. h3 {[%clk 0:01:52.5]} 16... b6 {[%clk
0:02:08.8]} 17. g4 {[%clk 0:01:50.6]} 17... Nxc3 {[%clk 0:02:08.5]} 18. Qxc3
{[%clk 0:01:49.5]} 18... c5 {[%clk 0:02:07.2]} 19. Bc4 {[%clk 0:01:43.7]} 19...
cxd4 {[%clk 0:02:04.1]} 20. Rxd4 {[%clk 0:01:18.1]} 20... Qb7 {[%clk 0:02:01.6]}
21. Rf1 {[%clk 0:01:05.8]} 21... Bxc4 {[%clk 0:02:01.6]} 22. Qxc4 {[%clk
0:01:02.8]} 22... Rac8 {[%clk 0:01:55.3]} 23. Qb5 {[%clk 0:00:58.9]} 23... Rc2+
{[%clk 0:01:54.8]} 24. Kb1 {[%clk 0:00:59.1]} 24... Rfc8 {[%clk 0:01:49.3]} 25.
Bd2 {[%clk 0:00:42.9]} 25... Nc6 {[%clk 0:01:48.4]} 26. Rd3 {[%clk 0:00:35.4]}
26... Qc7 {[%clk 0:01:39.8]} 27. Kxc2 {[%clk 0:00:21.1]} 27... Nd4+ {[%clk
0:01:38.8]} 28. Kb1 {[%clk 0:00:15.1]} 28... Qc2+ {[%clk 0:01:38.1]} 29. Ka1
{[%clk 0:00:15.4]} 29... Nxb5 {[%clk 0:01:33.9]} 30. Rc1 {[%clk 0:00:15.8]}
30... Qxd3 {[%clk 0:01:29.7]} 31. Rxc8+ {[%clk 0:00:16.7]} 31... Bf8 {[%clk
0:01:30.6]} 32. f5 {[%clk 0:00:15.4]} 32... Qf1+ {[%clk 0:01:25.7]} 33. Kb2
{[%clk 0:00:15.1]} 33... Qxf3 {[%clk 0:01:24.9]} 34. Bh6 {[%clk 0:00:15.1]}
34... Qe2+ {[%clk 0:01:21.6]} 35. Ka1 {[%clk 0:00:12.3]} 35... Qxe5+ {[%clk
0:01:20.5]} 36. Kb1 {[%clk 0:00:10.5]} 36... Qe4+ {[%clk 0:01:07.8]} 37. Kb2
{[%clk 0:00:08.2]} 37... Qd4+ {[%clk 0:01:04.7]} 38. Kb1 {[%clk 0:00:07.7]}
38... Qd1+ {[%clk 0:00:55.7]} 39. Kb2 {[%clk 0:00:06.4]} 39... Qd4+ {[%clk
0:00:48]} 40. Kc1 {[%clk 0:00:04.2]} 40... Qc5+ {[%clk 0:00:43.5]} 41. Rxc5
{[%clk 0:00:03.2]} 41... bxc5 {[%clk 0:00:44.4]} 42. Bxf8 {[%clk 0:00:03.3]}
42... Kxf8 {[%clk 0:00:45.3]} 43. axb5 {[%clk 0:00:03.8]} 43... Ke8 {[%clk
0:00:45.2]} 44. Kc2 {[%clk 0:00:02.3]} 44... gxf5 {[%clk 0:00:41.3]} 45. gxf5
{[%clk 0:00:03.2]} 45... Kd7 {[%clk 0:00:40]} 46. Kc3 {[%clk 0:00:03.8]} 46...
Kc7 {[%clk 0:00:39.1]} 47. Kd3 {[%clk 0:00:03.3]} 47... Kb6 {[%clk 0:00:37.9]}
48. Kc4 {[%clk 0:00:03.8]} 48... e6 {[%clk 0:00:37.7]} 49. f6 {[%clk 0:00:02.6]}
49... h5 {[%clk 0:00:37.6]} 50. h4 {[%clk 0:00:02.8]} 50... e5 {[%clk
0:00:34.4]} 51. Kd5 {[%clk 0:00:03.2]} 51... Kxb5 {[%clk 0:00:34.7]} 52. Kxe5
{[%clk 0:00:03.8]} 52... Kb4 {[%clk 0:00:33.6]} 53. Kd6 {[%clk 0:00:03.5]} 53...
Kxb3 {[%clk 0:00:33.4]} 54. Ke7 {[%clk 0:00:03.4]} 54... a4 {[%clk 0:00:23.9]}
55. Kxf7 {[%clk 0:00:04.3]} 55... a3 {[%clk 0:00:24.5]} 56. Kg6 {[%clk
0:00:05.2]} 56... a2 {[%clk 0:00:24.5]} 57. f7 {[%clk 0:00:06.1]} 57... a1=Q
{[%clk 0:00:24.5]} 58. f8=Q {[%clk 0:00:07]} 58... Qb1+ {[%clk 0:00:14.8]} 59.
Kxh5 {[%clk 0:00:06.4]} 59... Qd1+ {[%clk 0:00:14.8]} 60. Kg5 {[%clk 0:00:06.1]}
60... Qd5+ {[%clk 0:00:14.5]} 61. Kg6 {[%clk 0:00:04]} 61... Qg2+ {[%clk
0:00:13.4]} 62. Kh5 {[%clk 0:00:03.7]} 62... Qe2+ {[%clk 0:00:12.8]} 63. Kh6
{[%clk 0:00:03.7]} 63... Qe6+ {[%clk 0:00:11.6]} 64. Kg5 {[%clk 0:00:04.1]}
64... c4 {[%clk 0:00:06.6]} 65. h5 {[%clk 0:00:04.6]} 65... Qe5+ {[%clk
0:00:06.1]} 66. Kg6 {[%clk 0:00:03.7]} 66... Qg3+ {[%clk 0:00:04.9]} 67. Kh7
{[%clk 0:00:03.6]} 67... c3 {[%clk 0:00:03.5]} 68. h6 {[%clk 0:00:04.2]} 68...
Qd3+ {[%clk 0:00:03.6]} 69. Kg8 {[%clk 0:00:04]} 69... c2 {[%clk 0:00:02.9]} 70.
Qb8+ {[%clk 0:00:03.5]} 70... Ka2 {[%clk 0:00:02.5]} 71. Qa7+ {[%clk 0:00:03.7]}
71... Kb3 {[%clk 0:00:02.1]} 72. Qb6+ {[%clk 0:00:03.9]} 72... Ka3 {[%clk
0:00:01.3]} 73. Qa5+ {[%clk 0:00:04.1]} 73... Kb3 {[%clk 0:00:02.2]} 74. Qb6+
{[%clk 0:00:04.5]} 74... Ka3 {[%clk 0:00:02.4]} 75. Qa7+ {[%clk 0:00:05.1]}
75... Kb3 {[%clk 0:00:02.7]} 76. Qb7+ {[%clk 0:00:05.6]} 76... Ka3 {[%clk
0:00:02.9]} 77. Qa8+ {[%clk 0:00:04.6]} 77... Kb3 {[%clk 0:00:02.9]} 78. Qb8+
{[%clk 0:00:05]} 78... Ka3 {[%clk 0:00:03.3]} 79. Qf8+ {[%clk 0:00:04.2]} 79...
Kb3 {[%clk 0:00:03.1]} 80. Qf7+ {[%clk 0:00:04.2]} 80... Ka3 {[%clk 0:00:03.1]}
81. h7 {[%clk 0:00:04.1]} 81... c1=Q {[%clk 0:00:03]} 82. h8=Q {[%clk
0:00:04.2]} 82... Qc8+ {[%clk 0:00:03.3]} 83. Kg7 {[%clk 0:00:02.9]} 83... Qcc3+
{[%clk 0:00:03]} 84. Qf6 {[%clk 0:00:01.1]} 84... Qxf6+ {[%clk 0:00:02.5]} 85.
Kxf6 {[%clk 0:00:01.2]} 85... Qc3+ {[%clk 0:00:03.4]} 86. Kf7 {[%clk 0:00:01.6]}
86... Qxh8 {[%clk 0:00:03.9]} 0-1